Cogmind - Beta 13 @@@ ROGUE MODE // 2024.04.17 @ 22:43:21 Player: Maeve Result: Destroyed by D-53 Grenadier with Mini Grenade Launcher Performance ------------- Evolutions (0) 0 Regions Visited (2) 400 Robots Destroyed (6) 30 Value Destroyed (100) 100 Prototype IDs (0) 0 Alien Tech Used (0) 0 Bonus (0) 0 TOTAL SCORE: 530 Bonus ------- None Cogmind --------- Core Integrity 0/250 Matter 300/300 Energy 95/100 System Corruption 0% Temperature Hot (237) Movement Core (50) Location -10/Mines Parts ------- > --- POWER (1) -------- (None) > --- PROPULSION (2) --- (None) > --- UTILITY (2) ------ (None) > --- WEAPON (2) ------- (None) > --- INVENTORY (5) ---- Light Ion Engine Improved Sensor Array EM Pulse Gun Light Assault Rifle Mining Laser Peak State ------------ > --- POWER ------------ Ion Engine > --- PROPULSION ------- Aluminum Leg Aluminum Leg > --- UTILITY ---------- Small Storage Unit Improved Propulsion Shielding > --- WEAPON ----------- Field Laser Minigun > --- INVENTORY -------- Light Ion Engine Improved Sensor Array EM Pulse Gun EM Pulse Gun Light Assault Rifle Mining Laser [Rating: 13] Favorites ----------- Power Ion Engine Engine Ion Engine Propulsion Aluminum Leg Leg Aluminum Leg Utility Small Storage Unit Storage Small Storage Unit Protection Improved Propulsion Shielding Weapon EM Pulse Gun Energy Gun EM Pulse Gun Ballistic Gun Light Assault Rifle Build | -11 -10 -10 ------- Run | Yrd Mat Min Slots Evolved . | . . . Power . | . . . Propulsion . | . . . Utility . | . . . Weapon . | . . . Parts Attached 9 | 6 . 3 Power 1 | 1 . . Engine 1 | 1 . . Core . | . . . Reactor . | . . . Propulsion 2 | 2 . . Treads . | . . . Leg 2 | 2 . . Wheel . | . . . Hover . | . . . Flight . | . . . Utility 2 | 1 . 1 Device . | . . . Storage 1 | 1 . . Processor . | . . . Hackware . | . . . Protection 1 | . . 1 Artifact . | . . . Weapon 4 | 2 . 2 Energy Gun 2 | 1 . 1 Energy Cannon . | . . . Ballistic Gun 2 | 1 . 1 Ballistic Cannon . | . . . Launcher . | . . . Special Weapon . | . . . Impact Weapon . | . . . Slashing Weapon . | . . . Piercing Weapon . | . . . Special Melee Weapon . | . . . Unidentified Prototypes . | . . . Parts Lost 6 | . . 6 Power 1 | . . 1 Propulsion 2 | . . 2 Utility 1 | . . 1 Weapon 2 | . . 2 Highest Loss Streak 6 | . . 6 To Critical Strikes . | . . . Average Slot Usage (%) 88 | . 85 93 Engine 14 | . 14 14 Leg 28 | . 28 28 Storage 14 | . 14 14 Protection 3 | . . 7 Energy Gun 14 | . 14 14 Ballistic Gun 14 | . 14 14 Naked Turns 1 | . . 1 Heaviest Build 18 | 13 13 18 Greatest Support 20 | 20 20 20 Greatest Overweight (x) 1 | . . 1 Average Overweight (x) . | . . . Largest Inventory Capacity 8 | 8 8 8 Average Capacity 7 | 6 8 7 Most Carried 6 | 5 3 6 Average Carried 3 | 2 2 4 Final Capacity 8 | 8 8 5 Final Carried 5 | 2 3 5 Class Distribution -------------------- 100% | Mutant Dominant Class ---------------- Mutant | -10/Materials Mutant | -10/Mines Resources | -11 -10 -10 ----------- Run | Yrd Mat Min Matter Collected 307 | 205 61 41 Remotely . | . . . Salvage Created 185 | . 98 87 Parts 11 | . 6 5 Haulers Intercepted 1 | . 1 . Recyclers Shooed . | . . . Parts Field Recycled . | . . . Retrieved Matter . | . . . Parts Self-Destructed . | . . . Prevented . | . . . Kills | -11 -10 -10 ------- Run | Yrd Mat Min Combat Hostiles Destroyed 6 | . 3 3 Guns 6 | . 3 3 Classes Destroyed 4 | . 2 2 Hauler 1 | . 1 . Swarmer 3 | . 3 . Grunt 2 | . . 2 Assembled 1 | . . 1 Best Kill Streak 3 | . 3 3 Combat Bots Only 3 | . 3 3 Max Kills in Single Turn 1 | . 1 1 Gunslinging . | . . . Exploded . | . . . Melee . | . . . Uniques/NPCs Destroyed . | . . . Combat | -11 -10 -10 -------- Run | Yrd Mat Min Hostile Shots Fired 42 | . 14 28 Missed 7 | . 4 3 Damage Taken 894 | . 83 811 Core 257 | . 42 215 Absorbed by Shields . | . . . Redirected to Shielding 102 | . . 102 Core Remaining (%) 100 | 100 . . Volleys Fired 15 | . 6 9 Largest 2 | . 2 2 Hottest 88 | . 60 88 Shots Fired 30 | . 12 18 Gun 30 | . 12 18 Cannon . | . . . Launcher . | . . . Special . | . . . Kinetic 15 | . 6 9 Thermal 9 | . . 9 Explosive . | . . . Electromagnetic 6 | . 6 . Robot Hit Streak 6 | . 4 6 Robot Miss Streak 4 | . 4 4 Penetration Max . | . . . Secondary Targets 3 | . 1 2 Max Gunslinging Chain 1 | . 1 1 Shots Hit Robots 13 | . 5 8 Core Hits 11 | . 5 6 Critical Kills . | . . . Critical Parts Destroyed . | . . . Critical Strikes 1 | . . 1 Burn 1 | . . 1 Melee Attacks . | . . . Impact . | . . . Slashing . | . . . Piercing . | . . . Sneak Attacks . | . . . Combat Hostiles . | . . . Follow-up Attacks . | . . . Damage Inflicted 227 | . 78 149 Guns 227 | . 78 149 Cannons . | . . . Explosions . | . . . Melee . | . . . Ramming . | . . . Kinetic 100 | . 18 82 Thermal 67 | . . 67 Explosive . | . . . Electromagnetic 60 | . 60 . Impact . | . . . Slashing . | . . . Piercing . | . . . Highest Corruption . | . . . Average Corruption . | . . . Corruption Purged . | . . . Corruption Blocked . | . . . Overload Shots . | . . . Overflow Damage . | . . . Projectiles . | . . . Explosions . | . . . Melee . | . . . Knockbacks . | . . . Impact . | . . . Kinetic . | . . . Secondary . | . . . Self-Inflicted Damage . | . . . Shots . | . . . Rammed . | . . . Targets Rammed . | . . . Kicked . | . . . Crushed . | . . . Highest Temperature 300 | . 20 300 Average Temperature 106 | . 13 151 Received Heat Transfer 48 | . . 48 Siege Activations . | . . . Robots Corrupted . | . . . Combat Hostiles . | . . . Parts Fried 1 | . 1 . Impact Corruptions . | . . . Robots Melted . | . . . Combat Hostiles . | . . . Parts Melted . | . . . Heat Transferred 222 | . . 222 Parts Sabotaged . | . . . Parts Stolen . | . . . Parts Stripped . | . . . Power Chain Reactions . | . . . Alert | -11 -10 -10 ------- Run | Yrd Mat Min Peak Influence 114 | . 114 94 Initial 44 | . . 44 Average 48 | . 64 53 Maximum Alert Level . | . . . Low Security (%) 100 | 100 100 100 Level 1 . | . . . Level 2 . | . . . Level 3 . | . . . Level 4 . | . . . Level 5 . | . . . High Security . | . . . Max Security . | . . . Squads Dispatched 1 | . . 1 Investigation 1 | . . 1 Extermination . | . . . Reinforcement . | . . . Assault . | . . . Garrison . | . . . Intercept . | . . . Searches Triggered . | . . . Construction Impeded . | . . . Haulers Reinforced . | . . . Active Scanning Responses . | . . . Cargo Convoy Interrupts . | . . . Stealth | -11 -10 -10 --------- Run | Yrd Mat Min Distress Signals 1 | . 1 . Communications Jammed . | . . . Distress Signals . | . . . Times Spotted 13 | . 7 6 Peak Tracking Total 4 | . 4 4 Tactical Retreats . | . . . Traps | -11 -10 -10 ------- Run | Yrd Mat Min Traps Triggered . | . . . Indirectly . | . . . Trap Hack Attempts . | . . . Triggered . | . . . Disarmed . | . . . Reprogrammed . | . . . Reused . | . . . Traps Extracted . | . . . Installed . | . . . Triggered . | . . . Machines | -11 -10 -10 ---------- Run | Yrd Mat Min Machines Disabled . | . . . Max in Single Turn . | . . . Machines Repaired . | . . . Machines Dismantled . | . . . Machines Sabotaged . | . . . Overloaded Fab Kills . | . . . Hacking | -11 -10 -10 --------- Run | Yrd Mat Min Machines Accessed 2 | . 1 1 Terminals 1 | . 1 . Fabricators . | . . . Repair Stations . | . . . Recycling Units . | . . . Scanalyzers . | . . . Garrison Access . | . . . Total Hacks 5 | . 4 1 Successful 2 | . 1 1 Failed 3 | . 3 . Catastrophic . | . . . Database Lockouts . | . . . Manual . | . . . Terminals 4 | . 4 . Fabricators . | . . . Repair Stations . | . . . Recycling Units . | . . . Scanalyzers . | . . . Garrison Access . | . . . Terminal Hacks 2 | . 1 1 Open Door 1 | . . 1 Assault Status 1 | . 1 . Fabricator Hacks . | . . . Repair Station Hacks . | . . . Recycling Unit Hacks . | . . . Scanalyzer . | . . . Garrison Access Hacks . | . . . Unauthorized Hacks . | . . . Terminals . | . . . Fabricators . | . . . Repair Stations . | . . . Recycling Units . | . . . Scanalyzers . | . . . Garrison Access . | . . . Data Cores Recovered . | . . . Used . | . . . Hacking Detections 1 | . 1 . Full Trace Events . | . . . Feedback Events . | . . . Feedback Blocked . | . . . Robot Schematics Acquired . | . . . Robots Built . | . . . Authchips . | . . . Time . | . . . Total Robot Build Rating . | . . . Part Schematics Acquired . | . . . Parts Built . | . . . Authchips . | . . . Time . | . . . Total Part Build Rating . | . . . Parts Repaired . | . . . Time . | . . . Parts Recycled . | . . . Recycled Matter . | . . . Retrieved Matter . | . . . Retrieved Components . | . . . Parts Scanalyzed . | . . . Part Schematics Acquired . | . . . Parts Damaged . | . . . Bothacking | -11 -10 -10 ------------ Run | Yrd Mat Min Used RIF Installer . | . . . Robots Hacked . | . . . Non-combat . | . . . Combat . | . . . Robot Hacks Applied . | . . . Relay Couplers Released . | . . . Fabnet Peak Effective % . | . . . Robots Rewired . | . . . Allies Hacked . | . . . Hacks Repelled . | . . . Allies | -11 -10 -10 -------- Run | Yrd Mat Min Total Allies . | . . . Largest Group . | . . . Highest-Rated Group . | . . . Highest-Rated Ally . | . . . Total Orders . | . . . Ally Attacks . | . . . Total Damage . | . . . Kills . | . . . Allies Corrupted . | . . . Allies Melted . | . . . Intel | -11 -10 -10 ------- Run | Yrd Mat Min Robot Analysis Total . | . . . Derelict Logs Recovered 1 | . . 1 Drone Launches . | . . . Drone Recoveries . | . . . Exploration | -11 -10 -10 ------------- Run | Yrd Mat Min Turns Passed 255 | 46 120 89 Spaces Moved 168 | 37 85 46 Core 16 | 14 . 2 Treads . | . . . Legs 152 | 23 85 44 Wheels . | . . . Hover . | . . . Flight . | . . . Fastest Speed 50 | 50 120 100 Average Speed 113 | 93 120 119 Slowest Speed 120 | 120 120 120 Overloaded Moves . | . . . Propulsion Burnouts . | . . . Robots Hopped . | . . . Cave-ins Triggered . | . . . Exploration Rate (%) 15 | 3 29 15 Regions Visited 2 Branch Regions 1 Pre-discovered Areas 1 | . . 1 Known Exits Taken . | . . . Unknown Exits Taken 2 | 1 1 . Scrap Searched . | . . . Spaces Dug . | . . . Terrain Destroyed . | . . . Melee . | . . . Projectile . | . . . AOE . | . . . Terrain Rammed . | . . . Walls Destroyed . | . . . Machines Disabled . | . . . Actions | -11 -10 -10 --------- Run | Yrd Mat Min Total 202 | 47 92 63 Wait 1 | . 1 . Move 166 | 36 84 46 Hop . | . . . Pick Up 10 | 5 1 4 Fast Attach 3 | 3 . . Attach 4 | 3 . 1 Detach . | . . . Swap 2 | . . 2 Drop 1 | . . 1 Fire 15 | . 6 9 Melee . | . . . Ram . | . . . Kick . | . . . Crush . | . . . Escape Stasis . | . . . Rewire . | . . . Trap . | . . . Miscellaneous . | . . . Route ------- -11/Scrapyard -10/Materials -10/Mines History --------- Turn | Location | Event 10 | -11/Scrapyard | Discovered new exit (range 15) 47 | -11/Scrapyard | Entered Materials 153 | -10/Materials | Discovered new exit (range 10) 167 | -10/Materials | Entered Mines 172 | -10/Mines | Assembled infested the area 177 | -10/Mines | Assisted by a Guerilla fighting off Assembled 179 | -10/Mines | Learned location of Storage (-9) 190 | -10/Mines | Met a Derelict shopkeep closing up shop 252 | -10/Mines | Core integrity fell below 50% 256 | -10/Mines | Core integrity fell below 20% 256 | -10/Mines | Destroyed by D-53 Grenadier with Mini Grenade Launcher Last Messages --------------- 00234_ Switching to secondary target: G-34 Mercenary. 00235_ Acquired 3 matter. 00237_ G-34 Mercenary destroyed. 00237_ Switching to secondary target: G-34 Mercenary. 00238_ R-06 Scavenger collects Aluminum Leg. 00239_ GZ-MW3(g) destroyed. 00241_ The unstable cave ceiling collapses. 00241_ R-06 Scavenger collects Aluminum Leg. 00244_ R-06 Scavenger collects Sml. Laser. 00245_ The unstable cave ceiling collapses. 00248_ R-06 Scavenger collects Heat Sink. 00248_ Imp. Propulsion Shielding destroyed. 00251_ The unstable cave ceiling collapses. 00253_ Aluminum Leg destroyed. 00253_ Ion Engine destroyed. 00253_ Field Laser destroyed. 00253_ Aluminum Leg destroyed. 00253_ Minigun destroyed. 00254_ The unstable cave ceiling collapses. 00255_ Dropped Sml. Storage Unit. Map ----- +----------------------------------------------------+ | | | | | | | | | | | | | | | | | | | ?????????????????????????????????????????????????? | | ????????????????######???????????????????????????? | | ?????????######## ####????????????????????????? | | ????????##""## ##???????????????????????? | | ????????#" / # ##??????????????????????? | | ????????#" # #####??????????????????? | | ????????#" # ##?????????????????? | | ????????#"! #X #?????????????????? | | ????????##""## #?????????????????? | | ?????????##### ### ##?????????????????? | | ?????????????# ##?## #??????????????????? | | ?????????????# #### ###### #?????? #??????????? | | ????????????# ##?## ## ##### #?????????? | | ???????????# ##?## #?????????? | | ???????????## ##??# ????????? | | ????????????##????# ????????? | | ??????????????????# @[ ????????? | | ??????????????????# # ????????? | | ?????????????????# # ##?????????????? | | ????????????????# ## ##??????????????? | | ????????????????# #? ##???????????????? | | ????????????????## ####? #????????????????? | | ?????????????????##d #???? ????????????????? | | ??????????????????# = ???? ??????????????????? | | ??????????????????#%d ???????????????????????? | | ?????????????????? r ???????????????????????? | | ?????????????????